fUST/lending_fUST_20240131
["ID","MTS","AMOUNT","RATE_DAILY","PERIOD"]
[313048653,1706694643291,-372.85777824,0.00024152,2]
[313048655,1706694643300,-2617.59,0.00024152,2]
[313048657,1706694643309,-500.0,0.00024152,2]
[313048659,1706694643319,-500.0,0.00024152,2]
[313048661,1706694643328,-500.0,0.00024152,2]
[313048663,1706694643337,-500.0,0.00024152,2]
[313048664,1706694643347,-500.0,0.00024152,2]
[313048665,1706694643357,-500.0,0.00024152,2]
[313048666,1706694643366,-2093.39,0.00024152,2]
[313048667,1706694643374,-642.3454458,0.00024152,2]
[313048668,1706694643383,-500.0,0.00024152,2]
[313048669,1706694643392,-500.0,0.00024152,2]
[313048670,1706694643401,-151.0,0.00024152,2]
[313048671,1706694643410,-1110.6,0.00024152,2]
[313048672,1706694643419,-501.25,0.00024152,2]
[313048673,1706694643428,-500.0,0.00024153,2]
[313048674,1706694643437,-500.0,0.00024153,2]
[313048675,1706694643447,-500.0,0.00024153,2]
[313048676,1706694643456,-500.0,0.00024153,2]
[313048677,1706694643465,-500.0,0.00024153,2]
[313048678,1706694643474,-2493.32,0.00024153,2]
[313048679,1706694643483,-500.0,0.00024153,2]
[313048680,1706694643493,-2371.1,0.00024153,2]
[313048681,1706694643502,-500.0,0.00024153,2]
[313048682,1706694643511,-3001.61,0.00024153,2]
[313048683,1706694643520,-4032.89,0.00024153,2]
[313048684,1706694643529,-500.0,0.00024153,2]
[313048685,1706694643538,-527.73,0.00024153,2]
[313048687,1706694643547,-500.0,0.00024153,2]
[313048689,1706694643556,-500.0,0.00024153,2]
[313048691,1706694643565,-782.39,0.00024153,2]
[313048693,1706694643574,-500.0,0.00024153,2]
[313048695,1706694643583,-500.0,0.00024153,2]
[313048697,1706694643592,-500.0,0.00024153,2]
[313048699,1706694643601,-385.59773,0.00024153,2]
[313048701,1706694643610,-385.59773,0.00024153,2]
[313048703,1706694643619,-1769.46,0.00024153,2]
[313048705,1706694643628,-9989.663314,0.00024153,2]
[313048707,1706694643638,-1077.19,0.00024153,2]
[313048709,1706694643646,-9989.663314,0.00024153,2]
[313048711,1706694643656,-500.0,0.00024153,2]
[313048713,1706694643665,-151.0,0.00024153,2]
[313048715,1706694643674,-151.0,0.00024153,2]
[313048717,1706694643683,-500.0,0.00024153,2]
[313048719,1706694643692,-500.0,0.00024153,2]
[313048721,1706694643702,-500.0,0.00024153,2]
[313048723,1706694643711,-2307.34,0.00024153,2]
[313048725,1706694643720,-1996.15,0.00024153,2]
[313048727,1706694643729,-500.0,0.00024153,2]
[313048729,1706694643738,-5097.17,0.00024153,2]
[313048731,1706694643748,-500.0,0.00024153,2]
[313048733,1706694643757,-5011.01,0.00024153,2]
[313048735,1706694643766,-208.97833,0.00024153,2]
[313048737,1706694643775,-3151.49,0.00024153,2]
[313048739,1706694643784,-500.0,0.00024153,2]
[313048747,1706694643865,-500.0,0.00024154,2]
[313048749,1706694643875,-500.0,0.00024154,2]
[313048751,1706694643884,-323.44904625,0.00024154,2]
[313048753,1706694643893,-532.49556175,0.00024154,2]
[313048755,1706694643902,-529.43423216,0.00024154,2]
[313048757,1706694643911,-1408.6,0.00024154,2]
[313048759,1706694643920,-500.0,0.00024154,2]
[313048761,1706694643929,-902.58,0.00024154,2]
[313048763,1706694643939,-500.0,0.00024154,2]
[313048765,1706694643948,-193.41239296,0.00024154,2]
[313048767,1706694643957,-500.0,0.00024154,2]
[313048769,1706694643966,-500.32,0.00024154,2]
[313048771,1706694643975,-500.0,0.00024154,2]
[313048773,1706694643984,-500.0,0.00024154,2]
[313048775,1706694643993,-500.0,0.00024154,2]
[313048777,1706694644003,-500.0,0.00024154,2]
[313048778,1706694644012,-500.0,0.00024154,2]
[313048780,1706694644021,-6491.67,0.00024154,2]
[313048782,1706694644030,-500.0,0.00024154,2]
[313048784,1706694644039,-500.0,0.00024154,2]
[313048786,1706694644048,-500.0,0.00024154,2]
[313048788,1706694644059,-1161.82,0.00024154,2]
[313048790,1706694644068,-1159.06,0.00024154,2]
[313048792,1706694644077,-500.0,0.00024154,2]
[313048794,1706694644086,-500.0,0.00024154,2]
[313048796,1706694644095,-500.0,0.00024154,2]
[313048798,1706694644104,-670.57,0.00024154,2]
[313048800,1706694644113,-273.04314162,0.00024154,2]
[313048802,1706694644122,-588.24,0.00024154,2]
[313048804,1706694644131,-500.0,0.00024154,2]
[313048806,1706694644140,-151.0,0.00024154,2]
[313048808,1706694644150,-500.0,0.00024154,2]
[313048810,1706694644161,-290.0,0.00024154,2]
[313048812,1706694644171,-500.0,0.00024154,2]
[313048814,1706694644180,-500.0,0.00024154,2]
[313048816,1706694644189,-500.0,0.00024154,2]
[313048818,1706694644198,-2154.64,0.00024154,2]
[313048820,1706694644207,-444.30257714,0.00024154,2]
[313048822,1706694644216,-500.0,0.00024154,2]
[313048824,1706694644225,-500.0,0.00024154,2]
[313048826,1706694644234,-500.0,0.00024154,2]
[313048828,1706694644243,-151.0,0.00024154,2]
[313048830,1706694644254,-1145.59,0.00024154,2]
[313048832,1706694644263,-200.024532,0.00024154,2]
[313048834,1706694644273,-200.024532,0.00024154,2]
[313048836,1706694644281,-500.0,0.00024154,2]
[313048838,1706694644292,-500.0,0.00024154,2]
[313048840,1706694644300,-500.0,0.00024154,2]
[313048842,1706694644309,-500.0,0.00024154,2]
[313048844,1706694644319,-579.52929144,0.00024154,2]
[313048845,1706694644329,-500.0,0.00024154,2]
[313048848,1706694644338,-500.0,0.00024154,2]
[313048849,1706694644347,-500.0,0.00024154,2]
[313048851,1706694644356,-500.0,0.00024154,2]
[313048853,1706694644366,-500.0,0.00024154,2]
[313048855,1706694644375,-4555.91,0.00024154,2]
[313048857,1706694644383,-244.11934734,0.00024154,2]
[313048895,1706694644734,-260.71148909,0.00020894,2]
[313048897,1706694644743,-2087.68000233,0.00023869,3]
[313049069,1706694646558,-293.30999767,0.00023869,3]
[313049071,1706694646568,-500.0,0.00023878,2]
[313049073,1706694646578,-533.8,0.00023879,2]
[313049075,1706694646588,-389.789718,0.0002388,2]
[313049077,1706694646597,-389.789718,0.0002388,2]
[313049079,1706694646606,-389.789718,0.00024152,2]
[313049081,1706694646615,-500.0,0.00024152,2]
[313049083,1706694646625,-389.789718,0.00024152,2]
[313049086,1706694646634,-389.789718,0.00024153,2]
[313049088,1706694646643,-533.8,0.00024153,2]
[313049090,1706694646652,-389.789718,0.00024153,2]
[313049091,1706694646661,-255.88065266,0.00024154,2]
[313049094,1706694646670,-500.0,0.00024154,2]
[313049098,1706694646679,-500.0,0.00024154,2]
[313049099,1706694646689,-224.50716826,0.00024154,2]
[313049101,1706694646698,-1688.7,0.00024154,2]
[313049103,1706694646707,-500.0,0.00024154,2]
[313049105,1706694646717,-500.0,0.00024154,2]
[313049107,1706694646726,-500.0,0.00024154,2]
[313049110,1706694646735,-500.0,0.00024154,2]
[313049111,1706694646745,-500.0,0.00024154,2]
[313049114,1706694646756,-500.0,0.00024154,2]
[313049116,1706694646765,-500.0,0.00024154,2]
[313049118,1706694646775,-500.0,0.00024154,2]
[313049119,1706694646784,-500.0,0.00024154,2]
[313049121,1706694646793,-516.7559339,0.00024154,2]
[313049123,1706694646802,-500.0,0.00024154,2]
[313049125,1706694646811,-500.0,0.00024154,2]
[313049127,1706694646820,-500.0,0.00024154,2]
[313049129,1706694646829,-3073.54,0.00024154,2]
[313049132,1706694646838,-385.59773,0.00024154,2]
[313049133,1706694646848,-385.59773,0.00024154,2]
[313049135,1706694646856,-385.59773,0.00024154,2]
[313049137,1706694646865,-500.0,0.00024154,2]
[313049139,1706694646874,-385.59773,0.00024154,2]
[313049141,1706694646883,-9989.663314,0.00024154,2]
[313049143,1706694646892,-9989.663314,0.00024154,2]
[313049145,1706694646901,-9989.663314,0.00024154,2]
[313049148,1706694646911,-9989.663314,0.00024154,2]
[313049149,1706694646921,-500.0,0.00024154,2]
[313049152,1706694646931,-151.0,0.00024154,2]
[313049154,1706694646940,-151.0,0.00024154,2]
[313049156,1706694646949,-389.789718,0.00024154,2]
[313049158,1706694646959,-151.0,0.00024196,2]
[313049160,1706694646968,-200.024532,0.00024196,2]
[313049161,1706694646977,-200.024532,0.00024196,2]
[313049163,1706694646986,-2853.41,0.00024196,2]
[313049165,1706694646995,-500.0,0.00024196,2]
[313049167,1706694647005,-3139.77,0.00024196,2]
[313049169,1706694647015,-5559.17,0.00024196,2]
[313049172,1706694647024,-385.59773,0.00024196,2]
[313049174,1706694647034,-500.0,0.00024196,2]
[313049175,1706694647043,-385.59773,0.00024196,2]
[313049186,1706694647134,-9989.663314,0.00024196,2]
[313049188,1706694647145,-9989.663314,0.00024196,2]
[313049190,1706694647154,-13217.38,0.00024196,2]
[313049192,1706694647163,-232.912714,0.00024196,2]
[313049194,1706694647173,-1254.15,0.00024196,2]
[313049196,1706694647181,-45700.78,0.00024196,2]
[313049198,1706694647190,-500.0,0.00024196,2]
[313049200,1706694647200,-632.69,0.00024196,2]
[313049202,1706694647212,-389.789718,0.00024196,2]
[313049204,1706694647221,-389.789718,0.00024196,2]
[313049206,1706694647230,-153.0,0.00024384,2]
[313049208,1706694647240,-15422.7,0.00024425,2]
[313049210,1706694647250,-500.0,0.00024425,2]
[313049212,1706694647260,-2254.98,0.00024425,2]
[313049214,1706694647270,-389.789718,0.00024425,2]
[313049216,1706694647279,-500.0,0.00024426,2]
[313049218,1706694647288,-578.11,0.00024426,2]
[313049220,1706694647298,-500.0,0.00024426,2]
[313049222,1706694647307,-500.0,0.00024426,2]
[313049224,1706694647317,-500.0,0.00024426,2]
[313049226,1706694647326,-889.99,0.00024426,2]
[313049228,1706694647335,-500.0,0.00024426,2]
[313049230,1706694647345,-500.0,0.00024426,2]
[313049232,1706694647354,-500.0,0.00024426,2]
[313049234,1706694647362,-500.0,0.00024426,2]
[313049236,1706694647371,-774.69,0.00024426,2]
[313049238,1706694647380,-780.57,0.00024426,2]
[313049240,1706694647389,-6302.35,0.00024426,2]
[313049242,1706694647398,-866.63,0.00024426,2]
[313049244,1706694647407,-500.0,0.00024426,2]
[313049246,1706694647416,-500.0,0.00024426,2]
[313049248,1706694647426,-500.0,0.00024426,2]
[313049250,1706694647436,-500.0,0.00024426,2]
[313049252,1706694647444,-29218.12,0.00024426,2]
[313049254,1706694647453,-500.0,0.00024426,2]
[313049256,1706694647462,-500.0,0.00024426,2]
[313049258,1706694647471,-500.0,0.00024426,2]
[313049260,1706694647481,-500.0,0.00024426,2]
[313049262,1706694647490,-500.0,0.00024426,2]
[313049264,1706694647500,-500.0,0.00024426,2]
[313049266,1706694647510,-1411.17,0.00024426,2]
[313049268,1706694647519,-1302.59,0.00024426,2]
[313049270,1706694647528,-500.0,0.00024426,2]
[313049272,1706694647537,-500.0,0.00024426,2]
[313049274,1706694647546,-2379.27,0.00024426,2]
[313049276,1706694647555,-254.15920768,0.00024426,2]
[313049278,1706694647565,-500.0,0.00024426,2]
[313049280,1706694647574,-6451.66,0.00024426,2]
[313049282,1706694647584,-338.36742195,0.00024426,2]
[313049284,1706694647593,-500.0,0.00024426,2]
[313049286,1706694647602,-2617.59,0.00024426,2]
[313049288,1706694647611,-500.0,0.00024426,2]
[313049290,1706694647620,-500.0,0.00024426,2]
[313049292,1706694647629,-500.0,0.00024426,2]
[313049294,1706694647639,-500.0,0.00024426,2]
[313049296,1706694647648,-500.0,0.00024426,2]
[313049298,1706694647656,-2093.39,0.00024426,2]
[313049300,1706694647665,-378.5192034,0.00024426,2]
[313049302,1706694647674,-500.0,0.00024426,2]
[313049303,1706694647683,-1110.6,0.00024426,2]
[313049305,1706694647692,-501.25,0.00024426,2]
[313049308,1706694647702,-389.789718,0.00024426,2]
[313049309,1706694647711,-500.0,0.00024426,2]
[313049311,1706694647721,-500.0,0.00024427,2]
[313049314,1706694647731,-151.0,0.00024427,2]
[313049315,1706694647740,-200.024532,0.00024427,2]
[313049317,1706694647750,-200.024532,0.00024427,2]
[313049320,1706694647759,-500.0,0.00024427,2]
[313049322,1706694647768,-500.0,0.00024427,2]
[313049324,1706694647778,-526.56603704,0.00024427,2]
[313049326,1706694647787,-2493.32,0.00024427,2]
[313049327,1706694647796,-500.0,0.00024427,2]
[313049329,1706694647805,-500.0,0.00024427,2]
[313049331,1706694647814,-3001.61,0.00024427,2]
[313049333,1706694647824,-4032.89,0.00024427,2]
[313049336,1706694647833,-500.0,0.00024427,2]
[313049337,1706694647842,-527.73,0.00024427,2]
[313049340,1706694647851,-331.72263123,0.00024427,2]
[313049342,1706694647861,-500.0,0.00024427,2]
[313049344,1706694647871,-782.39,0.00024427,2]
[313049346,1706694647880,-403.53925331,0.00024427,2]
[313049348,1706694647890,-500.0,0.00024427,2]
[313049350,1706694647899,-500.0,0.00024427,2]
[313049352,1706694647907,-385.59773,0.00024427,2]
[313049354,1706694647916,-385.59773,0.00024427,2]
[313049356,1706694647925,-1769.46,0.00024427,2]
[313049358,1706694647934,-9989.663314,0.00024427,2]
[313049360,1706694647943,-1077.19,0.00024427,2]
[313049362,1706694647951,-5023.87987052,0.00024427,2]
[313054059,1706695650328,7757.9764971,0.00020066,2]
[313054068,1706695724581,621.66981447,0.00020066,2]
[313054070,1706695740582,385.76879473,0.00020066,2]
[313054083,1706695775296,300.0,0.00020066,2]
[313054097,1706695795291,300.0,0.00020066,2]
[313054104,1706695813336,300.0,0.00020066,2]
[313054144,1706695832620,-1698.26983511,0.00020902,2]
[313054145,1706695832631,-321.5578464,0.00020902,2]
[313054146,1706695832643,-815.94988363,0.00020902,2]
[313054147,1706695832663,-467.09929999,0.00020902,2]
[313054148,1706695832675,-940.05,0.00020902,2]
[313054190,1706695838677,-4251.71068143,0.00020902,2]
[313054192,1706695838688,-155.01085076,0.00020902,2]
[313054194,1706695838697,-1017.03372915,0.00020902,2]
[313054195,1706695838707,-323.57048434,0.00020903,2]
[313054198,1706695838718,-260.71148909,0.00020903,2]
[313054199,1706695838727,-1200.08348294,0.00020903,2]
[313054201,1706695838736,-155.01085076,0.00020904,2]
[313054203,1706695838746,-1774.94151371,0.00020904,2]
[313054205,1706695838754,-164.29062038,0.0002091,2]
[313054207,1706695838764,-162.25579296,0.00021016,2]
[313054209,1706695838772,-55687.79460593,0.00021097,2]
[313054211,1706695838781,-155.00703967,0.00021805,2]
[313054213,1706695838791,-262.71950685,0.00021915,2]
[313054215,1706695838800,-1268.60769879,0.00021915,2]
[313054218,1706695838809,-302.3601781,0.00021915,2]
[313054220,1706695838818,-494.9489016,0.00021915,2]
[313054222,1706695838827,-1396.91291584,0.00021915,2]
[313054223,1706695838836,-3169.86442143,0.00021916,2]
[313054224,1706695838846,-13486.40348308,0.00021916,2]
[313054225,1706695838856,-500.0,0.00021916,2]
[313054226,1706695838865,-500.0,0.00021916,2]
[313054227,1706695838874,-500.0,0.00021916,2]
[313054228,1706695838883,-337.2807246,0.00021916,2]
[313054229,1706695838893,-500.0,0.00021916,2]
[313054230,1706695838902,-400.10441139,0.00021916,2]
[313054231,1706695838912,-500.0,0.00021916,2]
[313054232,1706695838921,-500.0,0.00021916,2]
[313054233,1706695838931,-500.0,0.00021916,2]
[313054234,1706695838942,-500.0,0.00021916,2]
[313054235,1706695838951,-450.62631018,0.00021916,2]
[313054236,1706695838960,-500.0,0.00021916,2]
[313054237,1706695838969,-500.0,0.00021916,2]
[313054238,1706695838978,-500.0,0.00021916,2]
[313054239,1706695838987,-500.0,0.00021916,2]
[313054240,1706695838996,-500.0,0.00021916,2]
[313054241,1706695839005,-500.0,0.00021916,2]
[313054242,1706695839015,-500.0,0.00021916,2]
[313054243,1706695839024,-500.0,0.00021916,2]
[313054244,1706695839033,-500.0,0.00021916,2]
[313054245,1706695839042,-200.0,0.00021916,2]
[313054246,1706695839053,-857.05,0.00021917,2]
[313054247,1706695839062,-375.38166832,0.00021917,2]
[313054248,1706695839071,-187.69311989,0.00021917,2]
[313054249,1706695839080,-500.0,0.00021917,2]
[313054250,1706695839090,-500.0,0.00021917,2]
[313054251,1706695839099,-500.0,0.00021917,2]
[313054252,1706695839108,-548.96,0.00021917,2]
[313054254,1706695839117,-500.0,0.00021917,2]
[313054256,1706695839127,-500.0,0.00021917,2]
[313054258,1706695839136,-500.0,0.00021917,2]
[313054260,1706695839145,-535.1294643,0.00021917,2]
[313054262,1706695839154,-746.52,0.00021917,2]
[313054264,1706695839163,-500.0,0.00021917,2]
[313054266,1706695839172,-317.36443008,0.00021917,2]
[313054268,1706695839180,-500.0,0.00021917,2]
[313054270,1706695839191,-500.0,0.00021917,2]
[313054272,1706695839200,-500.0,0.00021917,2]
[313054274,1706695839209,-553.98,0.00021917,2]
[313054275,1706695839218,-500.0,0.00021917,2]
[313054277,1706695839227,-500.0,0.00021917,2]
[313054280,1706695839237,-500.0,0.00021917,2]
[313054282,1706695839246,-500.0,0.00021917,2]
[313054284,1706695839255,-500.0,0.00021917,2]
[313054286,1706695839264,-500.0,0.00021917,2]
[313054289,1706695839283,-500.0,0.00021917,2]
[313054291,1706695839294,-500.0,0.00021917,2]
[313054293,1706695839304,-500.0,0.00021917,2]
[313054295,1706695839316,-500.0,0.00021917,2]
[313054297,1706695839325,-500.0,0.00021917,2]
[313054299,1706695839334,-500.0,0.00021917,2]
[313054301,1706695839344,-500.0,0.00021917,2]
[313054303,1706695839353,-500.0,0.00021917,2]
[313054305,1706695839363,-500.0,0.00021917,2]
[313054306,1706695839372,-500.0,0.00021917,2]
[313054307,1706695839381,-500.0,0.00021917,2]
[313054308,1706695839391,-500.0,0.00021917,2]
[313054309,1706695839401,-2006.17,0.00021917,2]
[313054310,1706695839411,-500.0,0.00021917,2]
[313054311,1706695839421,-500.0,0.00021917,2]
[313054313,1706695839431,-500.0,0.00021917,2]
[313054315,1706695839442,-500.0,0.00021917,2]
[313054317,1706695839451,-500.0,0.00021917,2]
[313054319,1706695839461,-500.0,0.00021917,2]
[313054321,1706695839470,-500.0,0.00021917,2]
[313054323,1706695839480,-500.0,0.00021917,2]
[313054325,1706695839490,-2497.83,0.00021917,2]
[313054327,1706695839500,-500.0,0.00021917,2]
[313054329,1706695839510,-500.0,0.00021917,2]
[313054331,1706695839520,-568.35400767,0.00021917,2]
[313054333,1706695839530,-500.0,0.00021917,2]
[313054334,1706695839539,-500.0,0.00021917,2]
[313054336,1706695839549,-500.0,0.00021917,2]
[313054338,1706695839559,-500.0,0.00021917,2]
[313054340,1706695839568,-238.65381397,0.00021917,2]
[313054342,1706695839578,-500.0,0.00021917,2]
[313054344,1706695839588,-866.56,0.00021917,2]
[313054346,1706695839597,-500.0,0.00021917,2]
[313054348,1706695839607,-500.0,0.00021917,2]
[313054351,1706695839617,-553.73391012,0.00021917,2]
[313054353,1706695839628,-525.82967829,0.00021917,2]
[313054354,1706695839638,-500.0,0.00021917,2]
[313054357,1706695839651,-500.0,0.00021917,2]
[313054370,1706695839787,-500.0,0.00021917,2]
[313054372,1706695839797,-938.63,0.00021917,2]
[313054374,1706695839808,-1695.73,0.00021917,2]
[313054376,1706695839818,-500.0,0.00021917,2]
[313054378,1706695839827,-500.0,0.00021917,2]
[313054380,1706695839838,-1032.3,0.00021917,2]
[313054382,1706695839848,-2876.55,0.00021917,2]
[313054384,1706695839858,-347.85204275,0.00021917,2]
[313054386,1706695839867,-4040.2,0.00021917,2]
[313054388,1706695839876,-174.3742027,0.00021917,2]
[313054390,1706695839886,-500.0,0.00021917,2]
[313054391,1706695839895,-500.0,0.00021917,2]
[313054393,1706695839906,-5327.54,0.00021917,2]
[313054395,1706695839916,-500.0,0.00021917,2]
[313054397,1706695839927,-500.0,0.00021917,2]
[313054398,1706695839940,-500.0,0.00021917,2]
[313054400,1706695839950,-505.74,0.00021917,2]
[313054401,1706695839960,-500.0,0.00021917,2]
[313054402,1706695839970,-610.81401891,0.00021917,2]
[313054403,1706695839981,-500.0,0.00021917,2]
[313054404,1706695839991,-609.4752151,0.00021917,2]
[313054405,1706695840002,-783.81,0.00021917,2]
[313054406,1706695840012,-500.0,0.00021917,2]
[313054407,1706695840023,-500.0,0.00021917,2]
[313054408,1706695840033,-500.0,0.00021917,2]
[313054409,1706695840043,-508.76429048,0.00021917,2]
[313054410,1706695840053,-500.0,0.00021917,2]
[313054411,1706695840063,-401.89506063,0.00021917,2]
[313054412,1706695840073,-520.21219445,0.00021917,2]
[313054413,1706695840083,-500.0,0.00021917,2]
[313054414,1706695840092,-500.0,0.00021917,2]
[313054415,1706695840102,-28000.7,0.00021917,2]
[313054416,1706695840112,-774.63,0.00021917,2]
[313054417,1706695840121,-500.0,0.00021917,2]
[313054418,1706695840130,-510.41281854,0.00021917,2]
[313054419,1706695840140,-6313.77,0.00021917,2]
[313054420,1706695840150,-500.0,0.00021917,2]
[313054421,1706695840159,-500.0,0.00021917,2]
[313054422,1706695840169,-500.0,0.00021917,2]
[313054423,1706695840178,-500.0,0.00021917,2]
[313054424,1706695840190,-500.0,0.00021917,2]
[313054425,1706695840199,-501.01811761,0.00021917,2]
[313054426,1706695840210,-500.0,0.00021917,2]
[313054427,1706695840219,-1248.31,0.00021917,2]
[313054428,1706695840228,-1064.33,0.00021917,2]
[313054429,1706695840238,-1469.84,0.00021917,2]
[313054430,1706695840248,-226.34165706,0.00021917,2]
[313054431,1706695840257,-500.0,0.00021917,2]
[313054432,1706695840267,-500.0,0.00021917,2]
[313054433,1706695840276,-500.0,0.00021917,2]
[313054434,1706695840285,-500.0,0.00021917,2]
[313054435,1706695840294,-522.07,0.00021917,2]
[313054436,1706695840304,-2280.13,0.00021917,2]
[313054437,1706695840313,-1352.37,0.00021917,2]
[313054438,1706695840323,-500.0,0.00021917,2]
[313054439,1706695840333,-500.0,0.00021917,2]
[313054440,1706695840342,-14780.08,0.00021917,2]
[313054441,1706695840352,-2307.34,0.00021917,2]
[313054442,1706695840362,-500.0,0.00021917,2]
[313054443,1706695840371,-1996.15,0.00021917,2]
[313054444,1706695840381,-500.0,0.00021917,2]
[313054445,1706695840390,-500.0,0.00021917,2]
[313054446,1706695840399,-500.0,0.00021917,2]
[313054447,1706695840409,-6182.84,0.00021917,2]
[313054448,1706695840418,-500.0,0.00021917,2]
[313054449,1706695840428,-511.86998028,0.00021917,2]
[313054450,1706695840438,-307.69575709,0.00021917,2]
[313054451,1706695840447,-500.0,0.00021917,2]
[313054452,1706695840457,-518.82678093,0.00021917,2]
[313054453,1706695840466,-5097.17,0.00021917,2]
[313054454,1706695840475,-500.0,0.00021917,2]
[313054455,1706695840485,-500.0,0.00021917,2]
[313054456,1706695840494,-2508.52,0.00021917,2]
[313054457,1706695840503,-6491.67,0.00021917,2]
[313054458,1706695840512,-5011.01,0.00021917,2]
[313054459,1706695840521,-554.28759638,0.00021917,2]
[313054460,1706695840531,-500.0,0.00021917,2]
[313054461,1706695840539,-500.0,0.00021917,2]
[313054462,1706695840549,-3151.49,0.00021917,2]
[313054463,1706695840558,-500.0,0.00021917,2]
[313054464,1706695840567,-500.0,0.00021917,2]
[313054465,1706695840576,-500.0,0.00021917,2]
[313054466,1706695840585,-500.0,0.00021917,2]
[313054467,1706695840595,-941.82,0.00021917,2]
[313054468,1706695840604,-429.75278267,0.00021917,2]
[313054469,1706695840613,-2161.02,0.00021917,2]
[313054470,1706695840622,-500.0,0.00021917,2]
[313054471,1706695840636,-500.0,0.00021917,2]
[313054472,1706695840646,-500.0,0.00021917,2]
[313054473,1706695840655,-500.0,0.00021917,2]
[313054475,1706695840664,-500.0,0.00021917,2]
[313054476,1706695840674,-699.73,0.00021917,2]
[313054477,1706695840683,-166.666666,0.00021918,2]
[313054478,1706695840694,-18000.0,0.00022,2]
[313054479,1706695840703,-2037.54507979,0.00022,2]
[313054480,1706695840712,-3975.13505251,0.00022,2]
[313054481,1706695840723,-426.66199522,0.00022,2]
[313054483,1706695840732,-2858.58,0.0002219,2]
[313054485,1706695840742,-500.0,0.0002219,2]
[313054486,1706695840752,-3008.95,0.0002219,2]
[313054487,1706695840774,-500.0,0.0002219,2]
[313054488,1706695840807,-12666.66,0.0002219,2]
[313054489,1706695840816,-1201.9,0.0002219,2]
[313054490,1706695840826,-606.32,0.0002219,2]
[313054491,1706695840835,-857.05,0.00022191,2]
[313054492,1706695840845,-161.96932222,0.00022191,2]
[313054494,1706695840854,-500.0,0.00022191,2]
[313054496,1706695840864,-500.0,0.00022191,2]
[313054497,1706695840874,-548.96,0.00022191,2]
[313054499,1706695840883,-500.0,0.00022191,2]
[313054501,1706695840892,-500.0,0.00022191,2]
[313054503,1706695840901,-746.52,0.00022191,2]
[313054505,1706695840910,-500.0,0.00022191,2]
[313054506,1706695840919,-500.0,0.00022191,2]
[313054507,1706695840927,-500.0,0.00022191,2]
[313054508,1706695840937,-500.0,0.00022191,2]
[313054509,1706695840946,-553.98,0.00022191,2]
[313054510,1706695840955,-500.0,0.00022191,2]
[313054511,1706695840963,-500.0,0.00022191,2]
[313054512,1706695840972,-500.0,0.00022191,2]
[313054513,1706695840982,-500.0,0.00022191,2]
[313054514,1706695840991,-500.0,0.00022191,2]
[313054515,1706695841000,-500.0,0.00022191,2]
[313054516,1706695841008,-513.93419891,0.00022191,2]
[313054517,1706695841018,-500.0,0.00022191,2]
[313054518,1706695841027,-500.0,0.00022191,2]
[313054519,1706695841035,-500.0,0.00022191,2]
[313054520,1706695841045,-500.0,0.00022191,2]
[313054521,1706695841053,-500.0,0.00022191,2]
[313054522,1706695841062,-500.0,0.00022191,2]
[313054523,1706695841071,-372.85777824,0.00022191,2]